bitfinex/quotes_ETHUSD_20241116
["timestamp","ask_amount","ask_price","bid_price","bid_amount"]
[1731728232689,0.01,3135.6,3135.2,3.18949]
[1731728232892,3.19881,3136.0,3135.3,0.62698472]
[1731728233203,3.18899,3135.8,3135.3,0.56641476]
[1731728233375,3.19926,3135.6,3135.3,0.56641476]
[1731728234824,3.19938,3135.4,3135.3,0.00321476]
[1731728235013,3.838236,3135.4,3135.3,0.00321476]
[1731728235188,4.388236,3135.4,3135.3,0.00321476]
[1731728235390,5.160936,3135.4,3135.3,0.00321476]
[1731728236040,8.160936,3135.4,3135.3,0.00321476]
[1731728236316,8.180936,3135.4,3135.3,4.76e-06]
[1731728236678,8.150936,3135.4,3135.3,4.76e-06]
[1731728236912,8.160936,3135.4,3135.3,4.76e-06]
[1731728237328,8.180936,3135.4,3135.3,4.76e-06]
[1731728237812,3.20051,3134.3,3133.7,0.5632]
[1731728238191,0.01,3134.2,3133.7,0.5632]
[1731728238534,0.01,3134.0,3133.7,0.62700963]
[1731728238822,0.01,3134.0,3133.7,1.30884159]
[1731728239036,0.01,3134.2,3133.7,4.49995159]
[1731728239178,0.01,3134.2,3133.7,4.50316635]
[1731728239381,3.20083,3134.0,3133.7,1.31205635]
[1731728239607,3.20083,3134.0,3133.7,0.56641476]
[1731728240035,0.01,3134.0,3133.7,0.56641476]
[1731728240546,3.19099,3133.9,3133.7,0.00321476]
[1731728240752,3.20082,3134.0,3133.7,0.00321476]
[1731728240920,0.396268,3134.7,3133.9,3.19083]
[1731728240921,3.19018,3134.7,3133.9,3.19083]
[1731728241111,0.01,3134.3,3134.0,0.0638085]
[1731728241312,3.20051,3134.3,3133.9,0.69804424]
[1731728241853,3.2005,3134.3,3133.9,0.69804424]
[1731728242020,3.2005,3134.3,3133.9,0.00321476]
[1731728242021,0.01,3134.1,3133.9,0.00321476]
[1731728242852,3.97342,3134.1,3133.9,0.00321476]
[1731728243639,0.01,3134.1,3133.9,0.00321476]
[1731728244283,0.01,3134.1,3133.9,0.56641476]
[1731728244890,0.01,3134.3,3133.9,0.56641476]
[1731728245062,6.38068,3134.5,3133.9,0.56641476]
[1731728245265,0.7727,3134.8,3134.0,3.19079]
[1731728245266,0.01,3134.6,3134.0,3.19079]
[1731728245585,3.2002,3134.6,3134.0,3.19079]
[1731728246104,3.2002,3134.6,3133.9,0.9485475]
[1731728246245,0.01,3134.2,3133.9,0.56641476]
[1731728246448,0.01,3134.2,3133.9,0.00321476]
[1731728246857,0.7842,3134.1,3133.9,0.00321476]
[1731728247147,3.20081,3134.0,3133.9,0.00321476]
[1731728248401,4.29374971,3134.0,3133.9,0.00321476]
[1731728249102,0.7842,3134.1,3133.9,0.00321476]
[1731728249307,0.01,3134.0,3133.9,0.00321476]
[1731728249864,3.20081,3134.0,3133.9,0.00321476]
[1731728250475,3.98501,3134.0,3133.9,0.00321476]
[1731728251164,5.07793971,3134.0,3133.9,0.00321476]
[1731728252076,5.62793971,3134.0,3133.9,0.00321476]
[1731728252610,5.61793971,3134.0,3133.9,0.00321476]
[1731728252797,5.62793971,3134.0,3133.9,0.00321476]
[1731728252971,3.98501,3134.0,3133.9,0.00321476]
[1731728254417,4.53501,3134.0,3133.9,0.00321476]
[1731728255410,3.98501,3134.0,3133.9,0.00321476]
[1731728258727,0.7942,3134.0,3133.9,0.00321476]
[1731728259025,3.98501,3134.0,3133.9,0.00321476]
[1731728259882,0.01,3134.0,3133.9,0.00321476]
[1731728260083,0.01,3134.5,3134.0,0.5632]
[1731728260308,0.01,3134.5,3134.1,0.38210712]
[1731728260622,0.01,3134.3,3134.1,0.38532188]
[1731728261109,0.01,3134.5,3134.3,3.19041]
[1731728261311,0.01,3134.6,3134.3,3.19362476]
[1731728261619,0.01,3134.8,3134.4,0.06380207]
[1731728261787,0.01,3134.8,3134.3,3.51936819]
[1731728262107,3.20005,3134.8,3134.3,0.32895819]
[1731728262323,3.1898,3135.0,3134.4,0.39669484]
[1731728262484,0.01,3134.8,3134.4,0.33289582]
[1731728262820,0.01,3134.5,3134.3,0.00321476]
[1731728263107,3.1904,3134.4,3134.3,0.00321476]
[1731728263331,0.01,3134.5,3134.3,0.00321476]
[1731728263486,0.01,3134.7,3134.3,0.00321476]
[1731728263696,0.01,3135.2,3134.3,0.93054341]
[1731728263886,0.01,3135.2,3134.6,3.19018]
[1731728264116,0.01,3135.2,3134.7,0.06379453]
[1731728264272,0.01,3135.4,3134.8,0.5632]
[1731728264475,0.01,3135.4,3134.9,3.18982]
[1731728264707,0.01,3135.4,3134.9,3.19303476]
[1731728265389,0.01,3135.4,3134.9,0.69784724]
[1731728265585,0.01,3135.4,3134.9,3.19310476]
[1731728266471,0.01,3135.6,3134.9,3.19310476]
[1731728266678,0.01,3135.6,3134.9,0.00321476]
[1731728266878,3.19919,3135.6,3135.0,3.0]
[1731728267107,3.19919,3135.6,3135.0,0.99462348]
[1731728267307,3.18948,3135.4,3134.9,0.00321476]
[1731728267809,3.75359709,3136.2,3134.9,0.00321476]
[1731728267810,0.01,3135.9,3135.0,0.5632]
[1731728267988,0.01,3135.9,3134.9,3.00321476]
[1731728267989,0.01,3135.9,3135.5,0.5632]
[1731728268329,0.01,3135.9,3135.6,0.06377445]
[1731728268478,0.01,3135.9,3135.6,0.38194492]
[1731728269105,0.01,3135.9,3135.6,6.57102492]
[1731728269314,0.01,3135.9,3135.7,0.06377325]
[1731728269508,3.18847,3136.3,3135.7,0.06377325]
[1731728269509,0.01,3136.7,3135.9,0.5632]
[1731728269710,0.01,3136.7,3136.1,3.18859]
[1731728269916,0.04220391,3136.6,3136.0,3.0]
[1731728270123,0.04220391,3136.6,3136.3,3.0]
[1731728270320,0.875,3136.8,3136.3,3.0]
[1731728270321,0.875,3136.8,3136.7,3.18806]
[1731728270612,0.91041036,3136.8,3136.6,0.06375631]
[1731728270909,0.91041036,3136.8,3136.7,0.56641476]
[1731728271124,0.91041036,3136.8,3136.7,3.75447476]
[1731728271340,0.875,3136.8,3136.7,7.75512387]
[1731728271490,0.91041338,3136.8,3136.7,7.75512387]
[1731728272105,0.91041338,3136.8,3136.7,4.56706387]
[1731728272319,0.92041338,3136.8,3136.7,0.00321476]
[1731728272487,0.885,3136.8,3136.7,0.00321476]
[1731728272824,0.9104587,3136.8,3136.7,0.00321476]
[1731728273383,0.9104587,3136.8,3136.7,6.75447476]
[1731728273583,0.9104587,3136.8,3136.7,7.74874724]
[1731728273584,0.875,3136.8,3136.7,7.74874724]
[1731728273877,0.01268679,3138.0,3137.5,3.0]
[1731728274079,0.01268679,3138.0,3137.6,1.181935]
[1731728274323,0.01268679,3138.0,3137.6,0.5632]
[1731728274521,0.03219338,3137.9,3137.6,0.56641476]
[1731728275091,0.03219338,3137.9,3137.6,3.56641476]
[1731728275294,0.03219338,3137.9,3137.7,0.06373341]
[1731728275610,0.03219338,3137.9,3137.7,0.00321476]
[1731728275915,3.19694,3137.8,3137.7,0.00321476]
[1731728276116,3.22906338,3137.9,3137.7,0.00321476]
[1731728276322,0.05184717,3137.8,3137.7,0.00321476]
[1731728276880,0.04184717,3137.8,3137.7,0.00321476]
[1731728277302,0.01268679,3138.0,3137.7,0.62225924]
[1731728277500,0.04655458,3137.8,3137.7,0.62225924]
[1731728277711,0.01268679,3138.0,3137.7,0.62225924]
[1731728278189,0.04196805,3137.9,3137.7,0.62225924]
[1731728278386,0.01268679,3138.0,3137.7,0.00321476]
[1731728278807,0.04196987,3137.9,3137.7,0.00321476]
[1731728280422,0.04196987,3137.9,3137.7,3.00321476]
[1731728280624,0.04196987,3137.9,3137.8,3.0]
[1731728280824,0.00268679,3138.0,3137.8,1.00731846]
[1731728281120,0.04196257,3137.9,3137.8,0.00321476]
[1731728282887,0.04196257,3137.9,3137.8,0.06694721]
[1731728283397,0.04196257,3137.9,3137.8,0.00321476]
[1731728283584,0.04196257,3137.9,3137.8,0.06694446]
[1731728283998,0.04196257,3137.9,3137.8,6.81708446]
[1731728284298,0.0008,3138.2,3138.1,6.75984]
[1731728284698,0.0008,3138.2,3138.1,11.17902113]
[1731728285033,0.0008,3138.2,3138.1,6.75305476]
[1731728285439,0.0008,3138.2,3138.1,10.65305476]
[1731728285593,0.01,3139.8,3139.2,3.18544]
[1731728285787,0.01,3139.3,3139.2,0.00321476]
[1731728286026,3.19542,3139.3,3139.2,0.00321476]
[1731728286199,0.01,3139.3,3139.2,0.00321476]
[1731728286406,0.01,3139.5,3139.2,0.00321476]
[1731728286608,0.01,3139.7,3139.2,0.00321476]
[1731728286802,3.18515,3139.6,3139.2,0.00321476]
[1731728287131,3.18522,3139.5,3139.2,0.00321476]
[1731728287443,0.01,3139.7,3139.2,0.00321476]
[1731728287584,3.1853,3139.5,3139.2,0.00321476]
[1731728287789,3.19506,3139.7,3139.2,0.00321476]
[1731728288024,3.4793,3139.9,3139.3,3.18539]
[1731728288229,5.90482,3139.9,3139.2,0.35985624]
[1731728288434,2.72,3139.9,3139.2,3.00321476]
[1731728288591,5.90488,3139.9,3139.2,0.00321476]
[1731728288805,2.72,3139.9,3139.2,3.18872476]
[1731728289006,2.72,3139.9,3139.3,0.67519248]
[1731728289312,5.90483,3139.9,3139.3,0.67840724]
[1731728289645,2.72,3139.9,3139.4,3.18531]
[1731728289847,2.72,3139.9,3139.4,3.57168172]
[1731728290754,2.72,3139.9,3139.5,0.06369481]
[1731728291113,2.72,3139.9,3139.5,0.06690957]
[1731728291616,2.72,3139.9,3139.5,0.00321476]
[1731728291952,2.72,3139.9,3139.5,0.06690959]
[1731728292312,5.90483,3139.9,3139.5,0.06690959]
[1731728292655,0.01,3139.7,3139.5,0.00321476]
[1731728293016,2.72,3139.9,3139.5,0.00321476]
[1731728294237,2.72,3139.9,3139.6,0.0636952]
[1731728294563,2.72,3139.9,3139.6,0.06690996]
[1731728295424,0.01,3139.7,3139.6,0.00321476]
[1731728295773,3.19501,3139.7,3139.6,0.00321476]
[1731728298573,6.68302,3139.9,3139.6,0.00321476]
[1731728298773,2.72,3139.9,3139.6,0.00321476]
[1731728299062,5.90482,3139.9,3139.6,0.00321476]
[1731728299500,2.71,3139.9,3139.6,0.00321476]
[1731728300070,2.71,3139.9,3139.6,0.32843573]
[1731728300276,2.71,3139.9,3139.7,3.74821]
[1731728301370,2.71,3139.9,3139.7,3.75142476]
[1731728301703,2.71,3139.9,3139.7,0.56641476]
[1731728302222,2.71,3139.9,3139.7,3.75135476]
[1731728302516,2.71,3139.9,3139.8,3.18491]
[1731728302723,2.71,3139.9,3139.8,7.44175348]
[1731728303021,2.71,3139.9,3139.8,7.44496824]
[1731728303482,2.71,3139.9,3139.8,4.26005824]
[1731728303683,5.90481,3139.9,3139.8,0.00321476]
[1731728303881,2.71,3139.9,3139.8,0.00321476]
[1731728305814,6.72491,3139.9,3139.8,0.00321476]
[1731728306339,7.28491,3139.9,3139.8,4.76e-06]
[1731728306484,8.91919919,3139.9,3139.8,4.76e-06]
[1731728307498,8.90919919,3139.9,3139.8,4.76e-06]
[1731728307715,8.91919919,3139.9,3139.8,4.76e-06]
[1731728308412,8.90919919,3139.9,3139.8,4.76e-06]
[1731728308729,8.91919919,3139.9,3139.8,4.76e-06]
[1731728308930,15.65892031,3139.9,3139.8,4.76e-06]
[1731728309495,3.18663,3138.2,3138.0,0.5632]
[1731728309833,3.18663,3138.2,3137.3,3.18745]
[1731728309834,3.18673,3138.1,3137.4,0.5632]
[1731728310018,3.18681,3138.0,3137.4,0.89833354]
[1731728310333,3.18696,3137.8,3137.4,0.5632]
[1731728310491,3.18695,3137.8,3137.4,0.5632]
[1731728310688,3.18686,3137.9,3137.4,0.5632]
[1731728310900,3.18713,3137.7,3137.4,0.5632]
[1731728311102,3.19716,3137.6,3136.8,0.5632]
[1731728311341,3.18774,3137.1,3136.9,0.06374376]
[1731728311637,3.18786,3136.9,3136.2,0.5632]
[1731728311806,0.8284,3137.9,3136.3,3.18847]
[1731728311807,3.18746,3137.3,3136.3,3.18847]
[1731728312136,3.18722,3137.6,3136.9,3.18785]
[1731728312302,3.18718,3137.6,3136.9,3.18785]
[1731728312508,3.19718,3137.6,3136.9,3.18785]
[1731728312730,3.19735,3137.4,3137.0,0.318785]
[1731728313042,3.19735,3137.4,3136.4,0.375167]
[1731728313043,3.19746,3137.3,3136.4,0.5632]
[1731728313335,3.18746,3137.3,3136.6,3.18815]
[1731728313542,3.18746,3137.3,3136.4,0.5632]
[1731728313543,3.18763,3137.2,3136.7,0.38893983]
[1731728313835,3.19756,3137.2,3136.4,0.56641476]
[1731728314023,3.18784,3137.0,3136.7,0.00321476]
[1731728314530,3.18778,3137.0,3136.7,0.00321476]
[1731728314734,3.18796,3136.8,3136.7,0.00321476]
[1731728314890,3.19796,3136.8,3136.7,0.00321476]
[1731728315096,3.18788,3136.9,3136.7,0.00321476]
[1731728315289,3.18761,3137.2,3136.7,0.00321476]
[1731728315290,3.18755,3137.2,3136.7,0.00321476]
[1731728315538,3.18755,3137.2,3136.7,0.32236024]
[1731728315709,3.18731,3137.5,3136.8,0.62695237]
[1731728316033,3.19717,3137.6,3136.8,0.62695237]
[1731728316034,3.18738,3137.4,3136.8,0.56641476]
[1731728316240,3.19738,3137.4,3136.9,0.41373026]
[1731728316596,3.18745,3137.3,3136.9,0.41373026]
[1731728316908,0.01,3137.6,3137.3,3.18745]
[1731728317233,0.8284,3138.0,3137.3,3.18745]
[1731728317234,0.01,3138.0,3137.5,0.5632]
[1731728317402,3.19682,3138.0,3137.6,0.36269468]
[1731728317603,3.19682,3138.0,3137.5,0.56641476]
[1731728317792,3.18686,3137.9,3137.6,0.00321476]
[1731728318294,0.01,3138.0,3137.6,0.00321476]
[1731728318497,3.18696,3137.8,3137.6,0.00321476]
[1731728318835,3.18692,3137.9,3137.6,0.00321476]
[1731728319047,0.01,3138.0,3137.6,0.00321476]
[1731728319416,3.19704,3137.7,3137.6,0.00321476]
[1731728319621,4.02544,3137.7,3137.6,0.00321476]
[1731728321652,4.57544,3137.7,3137.6,0.00321476]
[1731728323177,4.02544,3137.7,3137.6,0.00321476]
[1731728323339,3.19704,3137.7,3137.6,0.00321476]
[1731728323742,2.94704,3137.7,3137.6,0.00321476]
[1731728325168,4.388828,3137.7,3137.6,0.00321476]
[1731728327568,4.938828,3137.7,3137.6,0.00321476]
[1731728328069,3.77544,3137.7,3137.6,0.00321476]
[1731728331964,2.94704,3137.7,3137.6,0.00321476]
[1731728333553,2.93704,3137.7,3137.6,0.00321476]
[1731728334092,0.01,3138.1,3137.6,0.00321476]
[1731728334383,3.19671,3138.1,3137.7,0.88223848]
[1731728334687,0.01,3137.8,3137.6,0.00321476]
[1731728334876,0.01,3137.8,3137.4,0.5632]
[1731728335054,0.01,3138.6,3137.9,3.18676]
[1731728335258,0.01,3138.6,3137.3,3.01]
[1731728335259,3.19617,3138.6,3138.0,3.8136433]
[1731728335466,3.19617,3138.6,3138.1,0.38136433]
[1731728335467,3.19625,3138.5,3138.1,0.38136433]
[1731728335668,3.19625,3138.5,3138.0,0.5632]
[1731728335877,3.18655,3138.2,3138.0,0.5632]
[1731728336058,0.01,3138.5,3138.0,0.5632]
[1731728336272,3.19631,3138.5,3138.0,0.5632]
[1731728336584,0.01,3138.5,3138.0,0.938206]
[1731728336785,0.01,3138.5,3138.0,0.5632]
[1731728337079,0.01,3138.5,3138.1,0.00321476]
[1731728337456,3.18637,3138.4,3138.1,0.00321476]
[1731728337870,3.18601,3138.8,3138.1,0.00321476]
[1731728338078,3.18601,3138.8,3138.1,0.06693548]
[1731728338368,3.18643,3138.3,3138.2,0.38167955]
[1731728338586,3.18643,3138.3,3138.1,0.00321476]
[1731728339102,3.1865,3138.3,3138.1,0.00321476]
[1731728339289,3.18654,3138.2,3138.1,0.00321476]
[1731728339604,3.19654,3138.2,3138.1,0.00321476]
[1731728339900,3.834836,3138.2,3138.1,0.00321476]
[1731728340705,5.185036,3138.2,3138.1,4.76e-06]
[1731728343401,3.99674,3138.2,3138.1,4.76e-06]
[1731728343705,3.19654,3138.2,3138.1,4.76e-06]
[1731728344372,3.19642,3138.4,3138.1,4.76e-06]
[1731728344568,3.18615,3138.6,3138.1,0.56320476]
[1731728344569,3.19615,3138.6,3138.1,0.56320476]
[1731728344880,3.18575,3139.0,3138.3,3.18643]
[1731728345085,3.18575,3139.0,3138.4,0.38235843]
[1731728345613,0.65106562,3139.1,3138.6,3.18611]
[1731728345762,0.65106562,3139.1,3138.5,3.74935]
[1731728346108,3.18569,3139.1,3138.5,3.74935]
[1731728346275,3.19548,3139.3,3138.6,3.18612]
[1731728346483,3.18534,3139.4,3138.7,0.374932]
[1731728346679,0.01,3139.5,3138.7,3.374932]
[1731728346879,5.90484,3139.9,3138.9,3.18582]
[1731728347087,3.18492,3139.8,3139.1,3.18555]
[1731728347403,2.72,3139.9,3139.3,0.5632]
[1731728347404,2.71,3139.9,3139.3,0.5632]
[1731728347613,2.71,3139.9,3139.5,3.18521]
[1731728347967,2.71,3139.9,3139.5,3.18842476]
[1731728348191,2.71,3139.9,3139.6,0.31884248]
[1731728348392,2.71,3139.9,3139.6,0.00321476]
[1731728348943,2.71,3139.9,3139.6,3.18824476]
[1731728349413,2.71,3139.9,3139.7,0.5632]
[1731728349774,2.71,3139.9,3139.7,0.56641476]
[1731728350393,5.89485,3139.9,3139.7,0.56641476]
[1731728350566,2.71,3139.9,3139.7,0.56641476]
[1731728351371,2.71,3139.9,3139.8,7.12326148]
[1731728352121,2.71,3139.9,3139.8,7.12647624]
[1731728354538,2.41359375,3139.9,3139.8,7.12647624]
[1731728354720,1.06069153,3139.9,3139.8,7.57703285]
[1731728354918,1.06069153,3139.9,3139.8,7.81703285]
[1731728355288,1.06069153,3139.9,3139.8,7.36647624]
[1731728356232,0.63444683,3139.9,3139.8,7.36647624]
[1731728356481,0.01,3141.7,3140.1,3.18461]
[1731728356637,0.01,3141.7,3140.9,3.0]
[1731728356822,0.01,3141.7,3140.9,3.18379]
[1731728357019,0.01,3141.7,3141.0,3.06365708]
[1731728357191,0.01,3142.0,3141.0,6.25055184]
[1731728357394,0.01,3142.0,3141.3,3.0]
[1731728357600,0.145297,3143.2,3141.3,3.0]
[1731728357601,3.18157,3143.1,3142.1,0.5632]
[1731728357828,3.18248,3142.2,3142.1,0.00321476]
[1731728357993,3.818962,3142.2,3142.1,0.00321476]
[1731728358198,4.616162,3142.2,3142.1,4.76e-06]
[1731728359405,3.818962,3142.2,3142.1,4.76e-06]
[1731728360046,3.0,3142.9,3142.1,4.76e-06]
[1731728360047,3.18239,3142.3,3142.1,4.76e-06]
[1731728360252,3.1823,3142.4,3142.1,4.76e-06]
[1731728360451,3.18233,3142.4,3142.1,4.76e-06]
[1731728361167,3.18248,3142.2,3142.1,4.76e-06]
[1731728362713,3.818961,3142.2,3142.1,4.76e-06]
[1731728363147,5.172261,3142.2,3142.1,4.76e-06]
[1731728363341,8.9132005,3142.2,3142.1,4.76e-06]
[1731728364054,8.3632005,3142.2,3142.1,4.76e-06]
[1731728365526,8.3732005,3142.2,3142.1,4.76e-06]
[1731728366325,3.18398,3140.8,3140.3,0.5632]
[1731728366761,3.1837,3141.0,3140.3,0.5632]
[1731728367126,3.18384,3140.9,3140.3,0.5632]
[1731728367562,3.18384,3140.9,3140.3,3.5632]
[1731728367979,3.18384,3140.9,3140.4,3.0]
[1731728368167,3.18351,3141.2,3140.4,3.67476]
[1731728368381,3.18364,3141.1,3140.4,3.67476]
[1731728368663,3.18374,3141.0,3140.4,3.67476]
[1731728369244,3.1841,3140.7,3140.3,0.56641476]
[1731728369478,3.1841,3140.7,3140.3,0.00321476]
[1731728369680,0.82,3140.5,3140.3,0.00321476]
[1731728369996,3.1843,3140.4,3140.3,0.00321476]
[1731728373068,3.1843,3140.4,3140.3,4.76e-06]
[1731728373306,3.7443,3140.4,3140.3,4.76e-06]
[1731728373512,4.4944,3140.4,3140.3,4.76e-06]
[1731728373663,5.63735195,3140.4,3140.3,4.76e-06]
[1731728374318,5.08735195,3140.4,3140.3,4.76e-06]
[1731728376493,5.63735195,3140.4,3140.3,4.76e-06]
[1731728377096,3.18604,3138.7,3138.4,0.5632]
[1731728377425,3.18594,3138.8,3138.4,0.5632]
[1731728378127,3.18605,3138.7,3138.4,0.5632]
[1731728378281,3.98909,3139.4,3138.4,0.5632]
[1731728378282,3.18623,3138.5,3138.4,0.5632]
[1731728378908,3.18666,3138.1,3137.9,0.5632]
[1731728379391,3.18674,3138.0,3137.9,0.00321476]
[1731728385330,3.824076,3138.0,3137.9,0.00321476]
[1731728385490,3.18674,3138.0,3137.9,0.00321476]
[1731728386496,3.95534,3138.0,3137.9,0.00321476]
[1731728390847,3.18674,3138.0,3137.9,0.00321476]
[1731728392915,3.18635,3138.4,3137.9,0.00321476]
[1731728393244,0.8203,3138.7,3137.9,0.00321476]
[1731728393245,3.18612,3138.7,3138.0,0.5632]
[1731728393451,3.18621,3138.6,3138.0,0.62693103]
[1731728393606,3.18624,3138.5,3138.1,0.38169658]
[1731728393804,3.1862,3138.6,3138.1,0.38169658]
[1731728394034,3.18623,3138.6,3138.1,0.38491134]
[1731728394231,4.00584,3139.2,3138.1,0.38491134]
[1731728394407,3.18625,3138.5,3138.1,0.38491134]
[1731728394950,3.18634,3138.4,3138.1,0.38491134]
[1731728395153,3.18634,3138.4,3138.1,0.00321476]
[1731728395304,3.18613,3138.6,3138.1,0.00321476]
[1731728395500,3.18625,3138.5,3138.1,0.00321476]
[1731728395706,3.1864,3138.4,3138.1,0.00321476]
[1731728395945,3.18581,3139.0,3138.1,0.00321476]
[1731728396151,3.18654,3138.2,3138.1,0.00321476]
[1731728404168,3.73654,3138.2,3138.1,0.00321476]
[1731728405188,3.18654,3138.2,3138.1,0.00321476]
[1731728407588,3.99254,3138.2,3138.1,0.00321476]
[1731728408449,3.18654,3138.2,3138.1,0.00321476]
[1731728409414,4.143474,3138.2,3138.1,0.00321476]
[1731728410244,3.18654,3138.2,3138.1,0.00321476]
[1731728410799,3.95894,3138.2,3138.1,0.00321476]
[1731728411233,3.18654,3138.2,3138.1,0.00321476]
[1731728411611,3.73654,3138.2,3138.1,0.00321476]
[1731728414861,3.18654,3138.2,3138.1,0.00321476]
[1731728416928,8.166232,3138.2,3138.1,4.76e-06]
[1731728417134,17.086232,3138.2,3138.1,4.76e-06]
[1731728423665,17.72209297,3138.2,3138.1,4.76e-06]
[1731728424531,17.71209297,3138.2,3138.1,4.76e-06]
[1731728424727,17.16209297,3138.2,3138.1,4.76e-06]
[1731728424939,8.24209297,3138.2,3138.1,4.76e-06]
[1731728425563,5.23209297,3138.2,3138.1,4.76e-06]
[1731728425735,3.18654,3138.2,3138.1,4.76e-06]
[1731728429349,3.73654,3138.2,3138.1,4.76e-06]
[1731728430748,4.50534,3138.2,3138.1,4.76e-06]
[1731728432288,7.56190757,3138.2,3138.1,4.76e-06]
[1731728436782,16.48190757,3138.2,3138.1,4.76e-06]
[1731728437007,19.78044137,3138.2,3138.1,4.76e-06]
[1731728437296,12.71310757,3138.2,3138.1,4.76e-06]
[1731728437454,12.16310757,3138.2,3138.1,4.76e-06]
[1731728439007,12.71310757,3138.2,3138.1,4.76e-06]
[1731728439562,12.16310757,3138.2,3138.1,4.76e-06]
[1731728439805,3.24310757,3138.2,3138.1,0.56320476]
[1731728440360,0.05656757,3138.2,3138.1,0.56320476]
[1731728440594,3.18654,3138.2,3138.1,0.56320476]
[1731728440793,3.24308327,3138.2,3138.1,0.56320476]
[1731728440997,0.05654327,3138.2,3138.1,0.56320476]
[1731728441199,3.24308327,3138.2,3138.1,0.56320476]
[1731728441496,3.73654,3138.2,3138.1,4.76e-06]
[1731728441666,3.79311972,3138.2,3138.1,4.76e-06]
[1731728442307,4.80970769,3138.2,3138.1,4.76e-06]
[1731728442599,11.12506938,3138.2,3138.1,4.76e-06]
[1731728443195,5.61530769,3138.2,3138.1,4.76e-06]
[1731728445604,11.12852473,3138.2,3138.1,4.76e-06]
[1731728446074,5.61530769,3138.2,3138.1,4.76e-06]
[1731728446922,3.24311972,3138.2,3138.1,4.76e-06]
[1731728447271,0.05657972,3138.2,3138.1,4.76e-06]
[1731728447590,3.18645,3138.3,3138.1,4.76e-06]
[1731728447798,0.05466224,3138.2,3138.1,4.76e-06]
[1731728448315,3.18654,3138.2,3138.1,4.76e-06]
[1731728448467,3.18642,3138.4,3138.1,4.76e-06]
[1731728448663,0.05466224,3138.2,3138.1,4.76e-06]
[1731728448889,3.18642,3138.4,3138.1,4.76e-06]
[1731728449088,0.05468494,3138.2,3138.1,0.56320476]
[1731728449298,3.18624,3138.5,3138.1,0.56320476]
[1731728449509,0.05468494,3138.2,3138.1,6.74984476]
[1731728449706,3.18542,3139.3,3138.5,0.5632]
[1731728449919,3.18542,3139.3,3138.6,3.18611]
[1731728450212,0.05520736,3139.2,3138.7,0.5632]
[1731728450415,0.05520736,3139.2,3138.9,0.5632]
[1731728450774,3.18542,3139.3,3138.9,0.5632]
[1731728450997,0.05522759,3139.2,3138.9,0.5632]
[1731728451176,3.18543,3139.3,3138.9,0.5632]
[1731728451398,0.05522759,3139.2,3138.9,0.5632]
[1731728451568,3.18543,3139.3,3138.9,0.91952]
[1731728451769,0.05522759,3139.2,3138.9,0.91952]
[1731728452111,3.18543,3139.3,3139.0,0.5632]
[1731728452312,0.05527651,3139.1,3139.0,0.5632]
[1731728452469,3.18543,3139.3,3139.0,0.5632]
[1731728453105,0.05531464,3139.2,3139.0,0.5632]
[1731728453480,3.18543,3139.3,3139.0,0.5632]
[1731728453994,3.18562,3139.1,3139.0,0.5632]
[1731728454182,3.18572,3139.0,3138.9,0.00321476]
[1731728454408,0.05524203,3139.0,3138.9,0.00321476]
[1731728455841,3.24096203,3139.0,3138.9,0.00321476]
[1731728457333,0.05524203,3139.0,3138.9,0.00321476]
[1731728457533,3.18572,3139.0,3138.9,0.00321476]
[1731728457723,3.24096203,3139.0,3138.9,0.00321476]
[1731728459106,5.18421223,3139.0,3138.9,0.00321476]
[1731728459420,4.43361223,3139.0,3138.9,0.00321476]
[1731728460442,3.79096203,3139.0,3138.9,0.00321476]
[1731728460600,0.05524203,3139.0,3138.9,0.00321476]
[1731728460800,3.18554,3139.2,3138.9,0.00321476]
[1731728461023,0.05525137,3139.1,3138.9,0.00321476]
[1731728461639,3.18572,3139.0,3138.9,0.00321476]
[1731728461936,4.11502363,3139.0,3138.9,0.00321476]
[1731728462134,7.95173061,3139.0,3138.9,0.00321476]
[1731728463226,3.79092649,3139.0,3138.9,0.00321476]
[1731728463842,0.05520649,3139.0,3138.9,0.00321476]
[1731728464854,3.18552,3139.2,3138.9,0.00321476]
[1731728465054,0.05519181,3139.0,3138.9,0.00321476]
[1731728465258,3.18552,3139.2,3138.9,0.00321476]
[1731728465409,0.05519181,3139.0,3138.9,0.00321476]
[1731728465611,3.18555,3139.2,3138.9,0.00321476]
[1731728465815,0.05523668,3139.1,3138.9,0.00321476]
[1731728466413,0.05523668,3139.1,3138.9,0.37845824]
[1731728466616,3.18533,3139.4,3138.9,0.37845824]
[1731728466932,3.18553,3139.2,3138.9,0.00321476]
[1731728467127,0.05526303,3139.1,3138.9,0.00321476]
[1731728467450,0.55,3139.0,3138.9,0.00321476]
[1731728467658,3.73572,3139.0,3138.9,0.00321476]
[1731728467861,3.79096449,3139.0,3138.9,0.00321476]
[1731728468019,4.80717494,3139.0,3138.9,0.00321476]
[1731728469390,8.72488192,3139.0,3138.9,0.00321476]
[1731728469698,11.72488192,3139.0,3138.9,0.00321476]
[1731728469847,11.72488192,3139.0,3138.9,4.76e-06]
[1731728471069,8.63877494,3139.0,3138.9,4.76e-06]
[1731728471291,11.72488192,3139.0,3138.9,4.76e-06]
[1731728474899,20.64488192,3139.0,3138.9,4.76e-06]
[1731728477067,3.0,3138.9,3137.4,0.5632]
[1731728477285,3.18715,3137.6,3136.9,3.18777]
[1731728477598,0.05441412,3137.5,3137.2,0.5632]
[1731728477752,3.18702,3137.8,3137.2,0.5632]
[1731728478095,3.24155395,3137.7,3137.2,0.5632]
[1731728478397,3.18733,3137.5,3137.2,0.5632]
[1731728478561,0.0543692,3137.4,3137.2,0.5632]
[1731728478755,3.2417392,3137.4,3137.2,0.5632]
[1731728479180,3.2417392,3137.4,3137.2,0.56641476]
[1731728479498,0.0543692,3137.4,3137.2,0.56641476]
[1731728479676,3.18707,3137.7,3137.2,0.56641476]
[1731728479864,0.05430097,3137.3,3137.2,0.56641476]
[1731728480066,3.18707,3137.7,3137.2,0.56641476]
[1731728480266,3.18685,3137.9,3137.2,0.56641476]
[1731728480267,0.05430097,3137.3,3137.2,0.56641476]
[1731728480496,3.18685,3137.9,3137.2,0.56641476]
[1731728480497,3.18685,3137.9,3137.2,3.00321476]